bitfinex/quotes_ETHUSD_20240927
["timestamp","ask_amount","ask_price","bid_price","bid_amount"]
[1727445321026,0.8096,2656.5,2656.1,3.7649]
[1727445321799,0.8096,2656.5,2656.2,3.76476]
[1727445322428,3.80464448,2656.6,2656.2,3.76476]
[1727445322715,0.8096,2656.8,2656.5,3.76431]
[1727445323337,0.8096,2656.8,2656.3,4.56083]
[1727445323489,8.37819448,2656.8,2656.3,4.56083]
[1727445323827,4.61424448,2656.8,2656.5,3.76433]
[1727445324029,7.3,2657.1,2656.4,3.76441]
[1727445324030,3.76373,2657.0,2656.4,3.76441]
[1727445324189,7.56842448,2656.9,2656.4,3.76441]
[1727445324389,3.76399,2656.8,2656.3,4.56083]
[1727445324633,3.80464448,2656.7,2656.3,4.56083]
[1727445324833,4.52693,2656.6,2656.1,3.76481]
[1727445325061,0.7627,2656.6,2656.3,3.76457]
[1727445325235,0.7627,2656.6,2656.2,7.52947]
[1727445325419,0.7627,2656.6,2656.3,3.76461]
[1727445325858,0.7627,2656.6,2656.1,3.0]
[1727445326166,0.7627,2656.6,2655.9,6.76519]
[1727445326167,3.80464448,2656.4,2655.9,6.76519]
[1727445326318,7.56920448,2656.4,2655.9,6.76519]
[1727445327114,3.80464448,2656.4,2656.0,3.76505]
[1727445327740,3.80464448,2656.4,2656.0,3.76498]
[1727445327943,8.33165448,2656.6,2656.1,4.441348]
[1727445328127,8.33165448,2656.6,2656.2,3.76476]
[1727445328459,3.80464448,2656.6,2656.3,3.76456]
[1727445328695,0.7722,2656.8,2656.5,3.76434]
[1727445328830,8.39238448,2657.0,2656.6,3.76418]
[1727445329016,8.39238448,2657.0,2656.5,3.76434]
[1727445329219,8.39238448,2657.0,2656.5,3.76427]
[1727445329434,8.39238448,2657.0,2656.1,4.69325]
[1727445329657,8.39238448,2657.0,2656.5,3.76426]
[1727445330815,12.15611448,2657.0,2656.5,3.76426]
[1727445331056,3.80464448,2656.8,2656.5,3.76426]
[1727445332142,3.80464448,2656.8,2656.3,3.76449]
[1727445332388,3.80464448,2656.8,2656.4,3.7644]
[1727445333189,3.80464448,2656.8,2656.5,3.76427]
[1727445333396,4.62864448,2657.0,2656.5,3.76426]
[1727445333550,4.62864448,2657.0,2656.6,3.76418]
[1727445333746,8.39236448,2657.0,2656.4,4.54201]
[1727445333978,3.80464448,2656.8,2656.4,5.4274325]
[1727445334984,3.80464448,2656.8,2656.4,1.6630225]
[1727445335373,3.80464448,2656.6,2656.2,3.0]
[1727445335687,3.80464448,2656.4,2655.9,11.91581]
[1727445335986,3.80464448,2656.4,2655.7,3.76538]
[1727445335987,3.80464448,2656.2,2655.8,3.0]
[1727445336145,3.80464448,2656.2,2655.6,0.8107]
[1727445336146,3.80464448,2656.0,2655.5,3.76573]
[1727445336399,0.8044,2656.0,2655.7,3.76547]
[1727445336696,3.80464448,2656.2,2655.8,3.76532]
[1727445336999,4.59563,2656.3,2655.8,4.518399]
[1727445337210,8.36036,2656.3,2655.8,0.753079]
[1727445337406,4.59563,2656.3,2655.8,4.518389]
[1727445338227,3.76479,2656.2,2655.8,0.753079]
[1727445338390,3.76479,2656.2,2655.7,3.76547]
[1727445338586,7.56943448,2656.2,2655.7,3.76547]
[1727445339004,3.80464448,2656.2,2655.7,7.53087]
[1727445339199,3.80464448,2656.2,2655.7,3.7654]
[1727445339418,0.8309,2656.3,2655.9,3.76512]
[1727445340030,3.80464448,2656.6,2656.2,3.76476]
[1727445340296,4.58539,2656.7,2656.2,3.76476]
[1727445340708,3.80464448,2656.6,2656.2,3.76476]
[1727445342596,3.80464448,2656.8,2656.4,3.76441]
[1727445342909,11.0636,2657.1,2656.6,3.7642]
[1727445343233,4.61094448,2657.2,2656.8,3.76392]
[1727445343826,3.80464448,2657.4,2656.8,3.828962]
[1727445344156,0.8005,2657.5,2657.2,3.76335]
[1727445344575,7.429236,2658.0,2657.5,3.76281]
[1727445344576,0.129236,2658.0,2657.5,3.76281]
[1727445345260,0.129236,2658.0,2657.7,3.0]
[1727445346265,0.129236,2658.0,2657.7,0.7713]
[1727445346461,0.129236,2658.0,2657.7,3.76264]
[1727445346630,0.129236,2658.0,2657.5,7.14664058]
[1727445346827,0.129236,2658.0,2657.6,3.76266]
[1727445347332,0.129236,2658.0,2657.6,7.52536]
[1727445347723,0.129236,2658.0,2657.7,3.76264]
[1727445348352,0.129236,2658.0,2657.6,3.76266]
[1727445348865,3.80464448,2657.9,2657.5,6.76293]
[1727445349066,3.80464448,2657.7,2657.3,3.76316]
[1727445349666,1.57411405,2657.9,2657.1,6.76343]
[1727445349667,3.80464448,2657.5,2657.1,6.76343]
[1727445349827,3.80464448,2657.5,2657.3,3.0]
[1727445350031,3.80464448,2657.5,2657.1,3.76341]
[1727445350531,3.80464448,2657.5,2657.1,3.7634]
[1727445350744,3.80464448,2657.5,2657.0,7.34]
[1727445350949,1.57411405,2657.9,2657.4,3.76299]
[1727445350950,3.80464448,2657.7,2657.4,3.76299]
[1727445351174,3.80464448,2657.7,2657.3,3.76312]
[1727445351755,3.80464448,2657.5,2657.1,3.76341]
[1727445352048,3.80464448,2657.3,2657.1,3.76341]
[1727445352297,3.80464448,2657.5,2657.1,7.52681]
[1727445352594,3.80464448,2657.5,2657.2,3.76328]
[1727445353154,3.80464448,2657.7,2657.3,3.76314]
[1727445353594,0.8045,2657.9,2657.4,4.55195]
[1727445353760,3.80464448,2657.8,2657.4,3.76305]
[1727445353960,3.80464448,2657.8,2657.4,3.76299]
[1727445354276,3.80464448,2657.8,2657.5,3.76292]
[1727445354892,0.8045,2657.9,2657.6,3.76278]
[1727445355085,0.8045,2657.9,2657.6,4.515357]
[1727445355594,0.8045,2657.9,2657.6,0.752577]
[1727445355799,3.93388048,2658.0,2657.6,0.752577]
[1727445356003,3.93388048,2658.0,2657.6,4.515337]
[1727445357208,3.93388048,2658.0,2657.6,4.515297]
[1727445357382,0.129236,2658.0,2657.8,3.76248]
[1727445358288,0.129236,2658.0,2657.9,3.76236]
[1727445360002,0.129236,2658.0,2657.8,3.76242]
[1727445360203,0.129236,2658.0,2657.9,4.138602]
[1727445360525,0.129236,2658.0,2657.9,0.376242]
[1727445361424,0.129236,2658.0,2657.7,6.76263]
[1727445361627,0.129236,2658.0,2657.7,3.0]
[1727445361800,3.93388048,2658.0,2657.7,3.0]
[1727445363086,3.891466,2658.0,2657.5,3.0]
[1727445363282,3.891466,2658.0,2657.4,3.76296]
[1727445363283,3.80464448,2657.8,2657.4,3.76296]
[1727445363505,3.80464448,2657.8,2657.5,0.376296]
[1727445364022,3.80464448,2657.8,2657.2,4.54736]
[1727445364237,0.7524,2657.7,2657.2,4.54736]
[1727445364390,0.7524,2657.7,2657.4,3.76298]
[1727445364591,0.129236,2658.0,2657.6,3.7627]
[1727445364791,0.129236,2658.0,2657.8,3.7625]
[1727445365299,0.129236,2658.0,2657.9,3.76236]
[1727445365722,0.129236,2658.0,2657.8,3.76248]
[1727445365907,0.129236,2658.0,2657.9,0.454638]
[1727445366644,3.93388048,2658.0,2657.6,3.76269]
[1727445367126,3.93388048,2658.0,2657.7,3.76263]
[1727445367539,3.93388048,2658.0,2657.6,3.76269]
[1727445368227,3.93388048,2658.0,2657.6,7.5254]
[1727445368396,3.93388048,2658.0,2657.7,3.76263]
[1727445368596,3.93388048,2658.0,2657.7,3.76252]
[1727445368796,3.93388048,2658.0,2657.6,4.59126]
[1727445369036,3.93388048,2658.0,2657.6,0.82857]
[1727445369207,3.80464448,2657.7,2657.4,3.76295]
[1727445369830,3.80464448,2657.7,2657.3,3.0]
[1727445370193,3.80464448,2657.7,2657.4,3.76299]
[1727445370393,7.69620048,2658.0,2657.4,0.376299]
[1727445370627,7.69620048,2658.0,2657.6,3.76277]
[1727445370628,3.93388048,2658.0,2657.6,3.76277]
[1727445371018,3.93388048,2658.0,2657.5,0.8241]
[1727445371189,3.93388048,2658.0,2657.7,7.52514]
[1727445371392,0.129236,2658.0,2657.8,3.76242]
[1727445371599,0.129236,2658.0,2657.7,3.76265]
[1727445371794,0.129236,2658.0,2657.8,0.431265]
[1727445371999,0.129236,2658.0,2657.6,4.31278]
[1727445372639,0.129236,2658.0,2657.5,4.58694]
[1727445372640,7.69622048,2658.0,2657.5,3.76284]
[1727445372798,0.7949,2657.9,2657.5,3.76284]
[1727445372999,0.7949,2657.9,2657.5,4.439124]
[1727445373224,0.7949,2657.9,2657.5,0.676284]
[1727445373395,4.55726,2657.9,2657.1,4.5457]
[1727445373801,0.7949,2657.9,2657.7,3.76261]
[1727445374092,3.93388048,2658.0,2657.8,0.376261]
[1727445374901,0.129236,2658.0,2657.8,4.138751]
[1727445375432,0.129236,2658.0,2657.8,0.376261]
[1727445376223,0.129236,2658.0,2657.8,4.138751]
[1727445376446,0.129236,2658.0,2657.8,0.376261]
[1727445376952,0.129236,2658.0,2657.8,4.138761]
[1727445377247,0.129236,2658.0,2657.9,0.7901321]
[1727445377408,3.76258,2657.8,2657.3,8.31037]
[1727445377608,3.76258,2657.8,2657.4,3.76305]
[1727445377804,3.76258,2657.8,2657.4,6.76305]
[1727445378035,11.45851048,2658.0,2657.5,1.131028]
[1727445378365,7.69619048,2658.0,2657.5,4.893828]
[1727445378513,7.69619048,2658.0,2657.6,3.76277]
[1727445378715,3.93388048,2658.0,2657.6,3.76277]
[1727445378912,3.93388048,2658.0,2657.7,0.4893798]
[1727445379222,0.129236,2658.0,2657.7,1.3045798]
[1727445379451,0.129236,2658.0,2657.7,4.57781]
[1727445379653,0.129236,2658.0,2657.7,0.8152]
[1727445379862,0.129236,2658.0,2657.7,4.57783]
[1727445380216,0.129236,2658.0,2657.7,0.8152]
[1727445380723,0.129236,2658.0,2657.7,0.55]
[1727445380930,0.129236,2658.0,2657.7,5.120119]
[1727445381580,0.129236,2658.0,2657.8,3.7625]
[1727445381796,0.129236,2658.0,2657.9,3.76236]
[1727445382992,0.129236,2658.0,2657.7,5.120099]
[1727445383178,0.129236,2658.0,2657.8,4.57667]
[1727445383386,0.129236,2658.0,2657.9,4.7320369]
[1727445383587,0.129236,2658.0,2657.9,5.2820369]
[1727445383787,0.129236,2658.0,2657.9,9.0982369]
[1727445385305,0.129236,2658.0,2657.9,9.4756369]
[1727445387913,0.129236,2658.0,2657.9,8.9256369]
[1727445388707,0.129236,2658.0,2657.9,9.29201228]
[1727445389518,0.129236,2658.0,2657.9,9.84201228]
[1727445391432,0.7911,2659.8,2659.3,3.7603]
[1727445391577,0.7911,2659.8,2659.1,4.54447]
[1727445391578,4.55078,2659.8,2659.4,0.43103]
[1727445391779,3.80464448,2659.7,2659.2,0.55]
[1727445392121,3.80464448,2659.8,2659.4,3.55]
[1727445392415,3.80464448,2659.6,2659.4,3.55]
[1727445392633,3.80464448,2659.6,2659.0,0.55]
[1727445392634,3.76013,2659.5,2659.0,0.55]
[1727445392842,3.80464448,2659.1,2659.0,3.55]
[1727445393008,3.80464448,2659.1,2659.0,0.55]
[1727445393207,4.59074448,2659.1,2658.9,0.55]
[1727445393519,4.59074448,2659.1,2658.9,4.31093]
[1727445393724,4.59074448,2659.1,2658.9,4.31095]
[1727445394031,4.59074448,2659.1,2658.9,1.657208]
[1727445394393,0.7861,2659.1,2658.9,1.657208]
[1727445394595,3.66981586,2660.9,2659.4,3.76017]
[1727445394596,0.7861,2659.8,2659.4,3.76017]
[1727445394896,4.54529,2660.2,2659.5,7.52]
[1727445395096,4.54529,2660.2,2659.6,3.75988]
[1727445395431,3.75929,2660.1,2659.5,0.55]
[1727445395601,8.30453,2660.2,2659.5,4.31002]
[1727445395796,8.30453,2660.2,2659.5,0.55]
[1727445395797,4.66796637,2660.0,2659.5,0.55]
[1727445395997,4.66796637,2660.0,2659.5,4.31009]
[1727445396736,4.66796637,2660.0,2659.5,0.55]
[1727445396899,4.66796637,2660.0,2659.5,4.31009]
[1727445397405,4.66796637,2660.0,2659.5,0.55]
[1727445397735,8.42737637,2660.0,2659.5,0.55]
[1727445397908,8.42736637,2660.0,2659.5,0.55]
[1727445398234,0.797,2659.9,2659.5,0.55]
[1727445399599,0.797,2659.9,2659.3,4.31035]
[1727445399840,0.797,2659.9,2659.5,0.55]
[1727445400722,0.797,2659.9,2659.3,0.55]
[1727445400918,0.797,2659.9,2659.4,3.76012]
[1727445401233,0.797,2659.9,2659.5,4.3101]
[1727445401542,0.797,2659.9,2659.5,1.357022]
[1727445401752,0.797,2659.9,2659.5,0.55]
[1727445402506,4.55663,2659.9,2659.4,3.0]
[1727445403055,4.55663,2659.9,2659.5,0.55]
[1727445403408,4.55663,2659.9,2659.4,0.55]
[1727445403409,3.7597,2659.8,2659.4,0.55]
[1727445403621,3.75995,2659.7,2659.3,3.0]
[1727445403823,3.7602,2659.5,2659.0,7.34]
[1727445404119,8.42792637,2659.6,2659.0,11.10079]
[1727445404540,8.42792637,2659.6,2658.9,8.27498]
[1727445404711,8.42792637,2659.6,2659.0,3.7608]
[1727445405449,8.42792637,2659.6,2659.1,0.55]
[1727445406843,4.66796637,2659.6,2659.1,0.55]
[1727445407516,8.42801637,2659.6,2659.1,0.55]
[1727445407756,12.18807637,2659.6,2659.1,0.55]
[1727445408051,3.76016,2659.5,2659.0,3.55]
[1727445408413,3.76016,2659.5,2659.0,0.55]
[1727445408613,4.66796637,2659.6,2659.0,4.3108]
[1727445408819,4.53315,2659.7,2659.0,4.3108]
[1727445409155,0.7885,2659.9,2659.5,3.76007]
[1727445409363,0.7885,2659.9,2659.6,0.55]
[1727445409710,7.5187,2660.1,2659.6,0.55]
[1727445409970,3.7594,2660.0,2659.6,0.55]
[1727445410113,3.75943,2660.0,2659.5,4.3101]
[1727445410511,3.75935,2660.1,2659.5,0.55]
[1727445410710,3.75955,2659.9,2659.5,0.55]
[1727445410916,3.7595,2660.0,2659.5,0.55]
[1727445411852,3.75955,2659.9,2659.5,0.55]
[1727445412224,3.75935,2660.1,2659.5,0.55]
[1727445412550,3.75941,2660.0,2659.5,0.55]
[1727445412961,3.7596,2659.9,2659.5,0.55]
[1727445413253,8.42737637,2660.0,2659.5,0.55]
[1727445413464,8.42737637,2660.0,2659.5,4.31007]
[1727445413752,12.18687637,2660.0,2659.5,0.55]
[1727445413958,8.42737637,2660.0,2659.5,0.55]
[1727445414358,8.42737637,2660.0,2659.5,4.3101]
[1727445414652,8.42737637,2660.0,2659.5,0.55]
[1727445415272,8.42737637,2660.0,2659.5,1.8130858]
[1727445416445,3.79088804,2659.9,2659.5,1.8130858]
[1727445416846,7.55050804,2659.9,2659.5,1.8130858]
[1727445417041,8.33210804,2659.9,2659.5,1.8130858]
[1727445419972,8.33210804,2659.9,2659.4,6.76017]
[1727445419973,3.75968,2659.8,2659.4,3.0]
[1727445420170,3.79088804,2659.6,2659.2,3.0]
[1727445420333,3.7595,2660.0,2659.4,3.76014]
[1727445420539,3.7595,2660.0,2659.4,3.0]
[1727445420540,3.75961,2659.9,2659.4,3.0]
[1727445420753,3.75961,2659.9,2659.5,1.131468]
[1727445421068,7.51902,2660.0,2659.5,1.131468]
[1727445421241,7.55051804,2659.9,2659.5,1.131468]
[1727445421440,7.55044804,2659.9,2659.4,3.55]
[1727445422172,3.79088804,2659.9,2659.4,7.31021]
[1727445422753,3.7597,2659.8,2659.4,3.55]
[1727445422947,3.7597,2659.8,2659.4,0.55]
[1727445423151,7.55045804,2659.9,2659.4,4.31022]
[1727445423348,7.55045804,2659.9,2659.4,0.55]
[1727445423670,3.79088804,2659.9,2659.4,7.31013]
[1727445423872,3.79088804,2659.9,2659.6,0.55]
[1727445424562,3.79088804,2660.2,2659.7,0.7875]
[1727445424764,3.79088804,2660.5,2660.0,0.55]
[1727445424970,7.54965804,2660.5,2660.1,0.7875]
[1727445425285,4.61428804,2660.2,2659.7,4.30974]
[1727445425439,4.61428804,2660.2,2659.8,3.0]
[1727445425749,4.61428804,2660.2,2659.6,3.7653]
[1727445425750,3.79088804,2659.9,2659.6,3.7653]
[1727445426075,3.79088804,2660.5,2660.2,3.75911]
[1727445426286,3.79088804,2660.5,2660.1,1.3814]
[1727445426587,0.129236,2660.7,2660.3,3.75891]
[1727445426751,0.129236,2660.7,2660.6,5.11435]
[1727445426957,0.129236,2660.7,2660.6,5.625785]
[1727445427141,0.129236,2660.7,2660.6,8.625785]
[1727445431338,0.129236,2660.7,2660.6,9.003185]
[1727445434660,0.129236,2660.7,2660.6,8.625785]
[1727445437388,0.129236,2660.7,2660.6,12.79407304]
[1727445437601,0.129236,2660.7,2660.6,14.361827]
[1727445437812,3.79088804,2662.5,2661.9,3.0]
[1727445438014,3.79088804,2662.5,2662.0,0.07512263]
[1727445438307,3.79088804,2662.5,2661.9,3.55]
[1727445438518,0.8275,2663.0,2662.2,4.54048]
[1727445438678,8.50240404,2663.3,2662.6,3.75561]
[1727445438878,8.50240404,2663.3,2662.5,3.7843]
[1727445438879,4.74762404,2663.3,2662.7,4.38064288]
[1727445439114,0.129236,2663.3,2663.0,1.3343]
[1727445439300,0.129236,2663.3,2663.0,1.843257]
[1727445439499,0.129236,2663.3,2663.0,1.058957]
[1727445439683,0.129236,2663.3,2663.0,0.55]
[1727445439885,0.129236,2663.3,2662.8,0.55]
[1727445440290,3.79088804,2663.2,2662.8,4.30535]
[1727445440584,3.79088804,2663.2,2662.9,3.0]
[1727445440919,3.79088804,2663.0,2662.8,0.55]
[1727445441075,0.7823,2663.2,2662.8,0.55]
[1727445441275,4.5372,2663.2,2662.4,0.7545]
[1727445441553,4.5372,2663.2,2662.6,0.55]
[1727445441815,0.7823,2663.2,2662.7,7.30556]
[1727445441982,0.7823,2663.2,2662.7,3.55]
[1727445442177,0.7823,2663.2,2662.9,3.55]
[1727445442379,0.129236,2663.3,2662.9,3.55]
[1727445442583,0.129236,2663.3,2662.9,7.30527]
[1727445442887,0.129236,2663.3,2662.9,0.55]
[1727445443478,0.129236,2663.3,2663.1,0.55]
[1727445443713,0.129236,2663.3,2663.1,4.305]
[1727445444027,0.129236,2663.3,2663.1,4.035507]
[1727445444219,0.129236,2663.3,2663.2,3.75488]
[1727445444518,0.129236,2663.3,2663.1,1.035507]
[1727445445082,0.129236,2663.3,2663.2,3.0]
[1727445445288,0.129236,2663.3,2663.2,4.3290507]
[1727445445489,0.129236,2663.3,2663.2,8.0839307]
[1727445446424,0.129236,2663.3,2663.2,8.8341307]
[1727445447342,0.129236,2663.3,2663.2,9.2115307]
[1727445447650,3.75301,2664.6,2664.0,4.56905]
[1727445447813,3.79088804,2664.4,2664.1,1.006905]
[1727445448428,3.7521,2665.2,2664.1,1.006905]
[1727445448429,0.950736,2666.0,2664.4,0.7665]
[1727445448595,0.950736,2666.0,2664.5,3.55]
[1727445448596,3.75216,2665.2,2664.5,3.55]
[1727445448924,0.8215,2665.3,2664.7,3.55]
[1727445449496,3.79088804,2665.5,2664.9,0.55]
[1727445449725,7.54252804,2665.5,2664.9,3.55]
[1727445450334,3.75156,2665.6,2664.8,0.55]
[1727445450636,0.7828,2665.7,2664.9,0.355]
[1727445450961,3.75195,2665.3,2664.9,0.355]
[1727445451299,3.75195,2665.3,2664.8,0.55]
[1727445451605,7.5034,2665.5,2664.8,0.55]
[1727445451937,3.75193,2665.3,2664.8,0.55]
[1727445452232,3.75166,2665.5,2664.8,0.55]
[1727445452393,3.75166,2665.5,2664.9,3.0]
[1727445452596,4.64694715,2665.6,2665.0,3.75234]
[1727445452820,4.53421,2665.7,2665.0,3.75234]
[1727445452821,4.53421,2665.7,2665.0,3.82737894]
[1727445453033,3.75152,2665.6,2664.9,3.0]
[1727445453208,4.53421,2665.7,2665.0,1.3691545]
[1727445453416,4.53421,2665.7,2665.2,0.55]
[1727445453613,0.7828,2665.7,2665.2,4.30196]
[1727445453919,0.880636,2666.0,2665.4,4.30166]
[1727445454108,0.129236,2666.0,2665.5,0.51269414]
[1727445454308,0.129236,2666.0,2665.4,0.55]
[1727445454537,0.129236,2666.0,2665.6,3.75142]
[1727445454745,0.129236,2666.0,2665.7,0.55]
[1727445454901,0.129236,2666.0,2665.9,4.30107]
[1727445455101,0.129236,2666.0,2665.9,8.11997863]
[1727445455908,0.129236,2666.0,2665.9,8.87817863]
[1727445457136,0.00088225,2666.9,2666.8,3.55]
[1727445457350,0.00088225,2666.9,2666.8,7.29981]
[1727445458101,0.00088225,2666.9,2666.8,3.55]
[1727445458812,0.00088225,2666.9,2666.8,7.29981]
[1727445460737,0.00088225,2666.9,2666.4,0.7943]
[1727445461152,0.00088225,2666.9,2666.8,7.54411]
[1727445461346,0.00088225,2666.9,2666.8,7.56956745]
[1727445461645,0.00088225,2666.9,2666.8,7.60715783]
[1727445461799,0.00088225,2666.9,2666.8,8.67981978]
[1727445462002,0.00088225,2666.9,2666.8,9.22981978]
[1727445467724,0.00088225,2666.9,2666.8,3.74981]
[1727445468957,0.00088225,2666.9,2666.8,8.08801]
[1727445469320,0.00088225,2666.9,2666.8,7.53801]
[1727445469709,0.00088225,2666.9,2666.8,6.74981]
[1727445470105,0.00088225,2666.9,2666.8,3.0]
[1727445470817,0.00088225,2666.9,2666.8,6.74981]
[1727445471054,0.00088225,2666.9,2666.8,3.0]
[1727445471253,0.00088225,2666.9,2666.4,3.75029]
[1727445471747,0.37593148,2666.9,2666.2,4.52515]
[1727445472041,0.37593148,2666.9,2665.9,0.81890863]
[1727445472042,3.7501,2666.6,2666.0,3.75085]
[1727445472253,3.75025,2666.5,2666.0,3.75085]
[1727445472620,3.75074,2666.2,2665.4,0.7838]
[1727445472949,0.7598,2666.3,2665.6,3.75136]
[1727445473111,3.75079,2666.1,2665.6,3.75136]
[1727445473318,12.14847715,2666.2,2665.7,0.08574536]
[1727445473516,3.7509,2666.1,2665.7,0.08574536]
[1727445473846,3.75095,2666.0,2665.7,0.08574536]
[1727445474213,8.39813715,2665.9,2665.7,0.08574536]
[1727445474441,4.53401,2665.8,2665.7,0.08574536]
[1727445474644,0.7828,2665.8,2665.7,0.08574536]
[1727445474846,4.51347,2666.1,2665.7,0.08574536]
[1727445475009,0.7626,2666.1,2665.7,0.08574536]
[1727445475210,0.7626,2666.1,2665.7,3.83701536]
[1727445475421,0.7626,2666.1,2665.8,3.7511]
[1727445476436,0.7626,2666.1,2665.7,3.0]
[1727445476636,0.7626,2666.1,2665.8,3.7512]
[1727445476852,0.7626,2666.1,2665.9,3.75098]
[1727445477534,4.64694715,2666.4,2665.9,3.75098]
[1727445477729,5.41704715,2666.4,2665.9,3.75098]
[1727445477932,0.91672872,2666.3,2665.2,0.772]
[1727445478148,5.41704715,2666.4,2665.2,0.772]
[1727445478461,3.75102,2666.0,2665.5,3.75162]
[1727445478753,9.16751715,2666.4,2665.8,3.7512]
[1727445479083,5.41704715,2666.4,2665.9,3.751]
[1727445479259,5.41704715,2666.4,2665.7,3.75135]
[1727445479260,3.75061,2666.3,2665.7,3.75135]
[1727445479620,9.16742715,2666.4,2665.8,3.75119]
[1727445479821,5.41704715,2666.4,2666.0,3.75092]
[1727445480342,0.7701,2666.4,2666.1,3.75077]
[1727445480545,0.7701,2666.4,2666.0,3.75092]
[1727445480746,0.7701,2666.4,2666.1,0.375092]
[1727445480947,0.7701,2666.4,2665.8,3.75115]
[1727445480948,5.41704715,2666.4,2665.8,3.75115]
[1727445481453,3.75081,2666.1,2665.7,3.0]
[1727445481633,3.7506,2666.3,2665.8,3.75117]
[1727445481828,3.75075,2666.2,2665.6,7.50282]
[1727445482021,3.75074,2666.2,2665.7,3.75134]
[1727445482630,7.50148,2666.2,2665.7,3.75134]
[1727445483038,7.50148,2666.2,2665.5,3.75157]
[1727445483039,4.64694715,2666.0,2665.3,3.75184]
[1727445483379,0.8132,2666.1,2665.6,3.75149]
[1727445483666,0.8132,2666.1,2665.8,3.75114]
[1727445484030,0.8132,2666.1,2665.4,3.808]
[1727445484232,0.8179,2666.4,2666.0,3.75093]
[1727445484428,0.8179,2666.4,2666.0,3.75084]
[1727445485167,0.8179,2666.4,2665.9,3.75096]
[1727445485373,0.8179,2666.4,2665.7,3.75134]
[1727445485374,3.75073,2666.2,2665.7,3.75134]
[1727445485549,8.39753715,2666.3,2665.7,7.50259]
[1727445485876,9.69411286,2666.3,2665.8,3.7512]
[1727445486337,0.8179,2666.4,2666.2,3.75059]
[1727445486738,0.8179,2666.4,2666.2,7.50118]
[1727445486949,0.8179,2666.4,2666.2,3.75059]
[1727445487330,0.8179,2666.4,2666.0,3.7508]
[1727445487979,0.8179,2666.4,2666.0,7.50166]
[1727445488172,0.8179,2666.4,2666.0,7.50165]
[1727445488477,0.8179,2666.4,2666.0,3.7508]
[1727445489846,3.75069,2666.2,2665.7,6.75131]
[1727445490180,3.75069,2666.2,2665.6,3.0]
[1727445490181,4.64694715,2666.1,2665.6,3.0]
[1727445490345,4.64694715,2666.1,2665.6,6.7514]
[1727445490548,4.64694715,2666.1,2665.7,3.75128]
[1727445490853,4.64694715,2666.1,2665.8,3.7512]
[1727445491160,8.31881,2666.4,2665.9,3.75107]
[1727445491475,0.8179,2666.4,2666.0,3.75086]
[1727445491651,0.8179,2666.4,2666.0,3.75085]
[1727445492274,4.56829,2666.4,2665.8,7.50221]
[1727445492478,3.77304252,2666.1,2665.9,3.75098]
[1727445492973,3.77304252,2666.1,2665.9,3.75094]
[1727445493344,3.77304252,2666.1,2665.7,3.75135]
[1727445493681,3.77304252,2666.1,2665.9,3.75094]
[1727445493882,3.77304252,2666.1,2665.8,3.75117]
[1727445494045,3.77304252,2666.1,2665.6,6.75147]
[1727445494253,3.77304252,2666.1,2665.7,3.75135]
[1727445494452,3.77304252,2666.1,2665.6,6.75147]
[1727445494651,4.60284252,2665.8,2665.5,3.0]
[1727445494946,3.77304252,2665.6,2665.5,3.0]
[1727445495348,3.77304252,2665.6,2665.4,3.0]
[1727445495745,3.77304252,2665.6,2665.4,3.75176]
[1727445495948,3.77304252,2665.6,2665.5,3.0]
[1727445496754,3.77304252,2665.6,2665.3,6.75191]
[1727445497154,3.77304252,2665.6,2665.5,3.0]
[1727445497970,3.77304252,2665.6,2665.5,6.75164]
[1727445498486,3.77304252,2665.6,2665.1,3.7522]
[1727445498656,3.75157,2665.6,2665.1,3.7522]
[1727445498861,3.77304252,2665.2,2665.0,3.75226]
[1727445499060,4.58244252,2665.2,2665.0,3.75226]
[1727445499389,3.75232,2665.1,2664.6,3.75282]
[1727445499562,4.58244252,2665.2,2664.8,3.75251]
[1727445499563,0.8094,2665.2,2664.8,3.75251]
[1727445499749,0.8094,2665.2,2664.6,4.503401]
[1727445500075,3.7522,2665.1,2664.6,7.50563]
[1727445500273,3.77304252,2664.7,2664.5,3.75304]
[1727445500456,3.75249,2664.9,2664.5,3.75304]
[1727445500457,4.64892316,2664.9,2664.5,3.75304]
[1727445500656,4.64892316,2664.9,2664.6,3.75289]
[1727445500985,5.45832316,2665.2,2664.6,3.75289]
[1727445501157,9.21040316,2665.2,2664.7,3.75273]
[1727445501485,5.45832316,2665.2,2664.8,3.75258]
[1727445502381,9.21045316,2665.2,2664.6,3.75287]
[1727445502578,9.21045316,2665.2,2664.3,0.8206]
[1727445502579,3.75245,2665.0,2664.5,3.75298]
[1727445502781,8.40143316,2664.9,2664.4,3.75318]
[1727445502986,8.40143316,2664.9,2664.1,0.456905]
[1727445502987,4.64892316,2664.6,2664.1,0.456905]
[1727445503347,4.64892316,2664.6,2664.3,3.75323]
[1727445503689,4.64892316,2664.6,2664.1,3.75361]
[1727445503690,3.75305,2664.5,2664.1,3.75361]
[1727445504046,4.64892316,2664.6,2664.0,3.75365]
[1727445504047,8.40193316,2664.6,2664.0,3.75365]
[1727445504495,5.43052316,2664.3,2664.0,3.75363]
[1727445504793,0.7816,2664.3,2664.0,3.75363]
[1727445504945,0.7816,2664.3,2663.8,3.75393]
[1727445505146,0.7816,2664.3,2663.8,3.7539]
[1727445505377,0.7816,2665.2,2663.9,0.84226787]
[1727445505588,0.7816,2665.2,2664.7,3.75274]
[1727445505589,4.53376,2665.2,2664.7,3.75274]
[1727445505962,0.7816,2665.2,2664.7,3.75272]
[1727445506163,0.7816,2665.2,2664.7,7.5054]
[1727445506470,0.7816,2665.2,2664.9,3.75235]
[1727445506656,0.7816,2665.2,2664.8,3.75261]